[Event "Titled Tuesday Blitz December 20 Late 2022"]
[White "Hoffmann, Asa"]
[Black "Melian, Juan Sebastian"]
[WhiteFideId "2001470"]
[BlackFideId "3706575"]
[WhiteElo "2117"]
[BlackElo "2044"]
[Result "0-1"]
[Round "02"]
[TimeControl "180+1"]
[Date "2022.12.21"]
[WhiteClock "0:00:13"]
[BlackClock "0:00:50"]

1. d4 {[%clk 0:02:48]}  d5 {[%clk 0:02:56]} 2. Bg5 {[%clk 0:02:44]}  c5 {[%clk 0:02:53]} 3. dxc5 {[%clk 0:02:39]}  Nc6 {[%clk 0:02:45]} 4. e4 {[%clk 0:02:33]}  dxe4 {[%clk 0:02:42]} 5. Qxd8+ {[%clk 0:02:32]}  Kxd8 {[%clk 0:02:41]} 6. Nc3 {[%clk 0:02:31]}  f5 {[%clk 0:02:25]} 7. O-O-O+ {[%clk 0:02:27]}  Ke8 {[%clk 0:02:26]} 8. Nb5 {[%clk 0:02:21]}  Kf7 {[%clk 0:02:24]} 9. Bc4+ {[%clk 0:02:20]}  Kg6 {[%clk 0:02:20]} 10. Be3 {[%clk 0:02:14]}  Nf6 {[%clk 0:02:11]} 11. Ne2 {[%clk 0:02:12]}  e5 {[%clk 0:02:09]} 12. g3 {[%clk 0:01:59]}  Bd7 {[%clk 0:02:00]} 13. Nd6 {[%clk 0:01:55]}  Bxd6 {[%clk 0:01:59]} 14. Rxd6 {[%clk 0:01:52]}  Rhd8 {[%clk 0:01:59]} 15. Rhd1 {[%clk 0:01:52]}  Be8 {[%clk 0:02:00]} 16. h3 {[%clk 0:01:47]}  Bf7 {[%clk 0:02:00]} 17. Bb5 {[%clk 0:01:40]}  Rxd6 {[%clk 0:01:56]} 18. cxd6 {[%clk 0:01:30]}  Nd7 {[%clk 0:01:53]} 19. a3 {[%clk 0:01:18]}  a6 {[%clk 0:01:43]} 20. Bxc6 {[%clk 0:01:15]}  bxc6 {[%clk 0:01:44]} 21. Nc3 {[%clk 0:01:09]}  Kf6 {[%clk 0:01:34]} 22. Na4 {[%clk 0:01:03]}  Bd5 {[%clk 0:01:32]} 23. b3 {[%clk 0:01:01]}  g5 {[%clk 0:01:25]} 24. c4 {[%clk 0:01:00]}  Be6 {[%clk 0:01:22]} 25. Nb6 {[%clk 0:00:58]}  Rb8 {[%clk 0:01:16]} 26. c5 {[%clk 0:00:51]}  f4 {[%clk 0:01:10]} 27. Nxd7+ {[%clk 0:00:44]}  Bxd7 {[%clk 0:01:10]} 28. Bd2 {[%clk 0:00:37]}  Rxb3 {[%clk 0:01:09]} 29. Bb4 {[%clk 0:00:33]}  a5 {[%clk 0:01:06]} 30. Bxa5 {[%clk 0:00:31]}  Rxa3 {[%clk 0:01:06]} 31. Bb6 {[%clk 0:00:26]}  Bxh3 {[%clk 0:00:55]} 32. Kb2 {[%clk 0:00:19]}  Rd3 {[%clk 0:00:53]} 33. Re1 {[%clk 0:00:17]}  e3 {[%clk 0:00:51]} 34. fxe3 {[%clk 0:00:15]}  f3 {[%clk 0:00:51]} 35. Kc2 {[%clk 0:00:13]}  e4 {[%clk 0:00:50]} 0-1


[Site "https://www.chess.com"]

[Event "Titled Tuesday Blitz December 20 Late 2022"]
[White "Ibarra Jerez, Jose Carlos"]
[Black "Baches Garcia, Guillermo"]
[WhiteFideId "2226332"]
[BlackFideId "2209764"]
[WhiteElo "2638"]
[BlackElo "2477"]
[Result "1-0"]
[Round "02"]
[TimeControl "180+1"]
[Date "2022.12.21"]
[WhiteClock "0:02:41"]
[BlackClock "0:01:17"]

1. e4 {[%clk 0:03:00]}  c5 {[%clk 0:03:00]} 2. Nc3 {[%clk 0:02:59]}  d6 {[%clk 0:02:59]} 3. d4 {[%clk 0:02:59]}  cxd4 {[%clk 0:03:00]} 4. Qxd4 {[%clk 0:03:00]}  Nc6 {[%clk 0:03:00]} 5. Qd2 {[%clk 0:03:00]}  g6 {[%clk 0:02:58]} 6. b3 {[%clk 0:03:00]}  Bh6 {[%clk 0:02:57]} 7. f4 {[%clk 0:03:00]}  e5 {[%clk 0:02:52]} 8. Nb5 {[%clk 0:03:00]}  Bxf4 {[%clk 0:02:45]} 9. Qxd6 {[%clk 0:02:59]}  Qxd6 {[%clk 0:02:25]} 10. Nxd6+ {[%clk 0:03:00]}  Kf8 {[%clk 0:02:08]} 11. Ba3 {[%clk 0:03:01]}  Kg7 {[%clk 0:02:03]} 12. Ne8+ {[%clk 0:03:01]}  Kh6 {[%clk 0:01:59]} 13. Bf8+ {[%clk 0:03:02]}  Kh5 {[%clk 0:01:56]} 14. Bg7 {[%clk 0:02:52]}  Be6 {[%clk 0:01:37]} 15. Nc7 {[%clk 0:02:50]}  Rd8 {[%clk 0:01:18]} 16. Nxe6 {[%clk 0:02:43]}  fxe6 {[%clk 0:01:17]} 17. Be2+ {[%clk 0:02:41]} 1-0


[Site "https://www.chess.com"]

[Event "Titled Tuesday Blitz December 20 Late 2022"]
[White "Iliaguev, Nisim"]
[Black "Thiel, Thomas"]
[WhiteFideId "2817276"]
[BlackFideId "4615964"]
[WhiteElo "2241"]
[BlackElo "2238"]
[Result "1-0"]
[Round "02"]
[TimeControl "180+1"]
[Date "2022.12.21"]
[WhiteClock "0:02:07"]
[BlackClock "0:02:02"]

1. d4 {[%clk 0:03:00]}  Nf6 {[%clk 0:02:57]} 2. Nf3 {[%clk 0:03:01]}  g6 {[%clk 0:02:55]} 3. g3 {[%clk 0:03:01]}  Bg7 {[%clk 0:02:55]} 4. Bg2 {[%clk 0:03:02]}  d5 {[%clk 0:02:55]} 5. O-O {[%clk 0:03:03]}  O-O {[%clk 0:02:54]} 6. c4 {[%clk 0:03:04]}  dxc4 {[%clk 0:02:52]} 7. Qc2 {[%clk 0:03:04]}  Nc6 {[%clk 0:02:52]} 8. Qxc4 {[%clk 0:03:04]}  Bf5 {[%clk 0:02:49]} 9. Nc3 {[%clk 0:03:03]}  Ne4 {[%clk 0:02:48]} 10. Nh4 {[%clk 0:02:53]}  Nd6 {[%clk 0:02:46]} 11. Qa4 {[%clk 0:02:52]}  Nxd4 {[%clk 0:02:44]} 12. e3 {[%clk 0:02:45]}  Nc2 {[%clk 0:02:42]} 13. Nxf5 {[%clk 0:02:40]}  Nxa1 {[%clk 0:02:39]} 14. Nxg7 {[%clk 0:02:40]}  Kxg7 {[%clk 0:02:37]} 15. Bd2 {[%clk 0:02:33]}  b5 {[%clk 0:02:20]} 16. Qd1 {[%clk 0:02:27]}  b4 {[%clk 0:02:20]} 17. Na4 {[%clk 0:02:20]}  Rb8 {[%clk 0:02:13]} 18. Qxa1 {[%clk 0:02:11]}  Nf5 {[%clk 0:02:08]} 19. b3+ {[%clk 0:02:09]}  Kg8 {[%clk 0:02:07]} 20. Rd1 {[%clk 0:02:10]}  Qc8 {[%clk 0:02:04]} 21. e4 {[%clk 0:02:07]}  Nd6 {[%clk 0:02:02]} 22. Bh6 {[%clk 0:02:07]} 1-0


[Site "https://www.chess.com"]

[Event "Titled Tuesday Blitz December 20 Late 2022"]
[White "Ivanov, Mike"]
[Black "Rose, Felix"]
[WhiteFideId "2613158"]
[BlackFideId "5105722"]
[WhiteElo "2237"]
[BlackElo "2039"]
[Result "1-0"]
[Round "02"]
[TimeControl "180+1"]
[Date "2022.12.21"]
[WhiteClock "0:00:10"]
[BlackClock "0:00:01"]

1. e4 {[%clk 0:03:00]}  c5 {[%clk 0:02:59]} 2. Nf3 {[%clk 0:03:00]}  d6 {[%clk 0:02:59]} 3. d4 {[%clk 0:03:01]}  cxd4 {[%clk 0:03:00]} 4. Nxd4 {[%clk 0:03:02]}  Nf6 {[%clk 0:03:00]} 5. Nc3 {[%clk 0:03:02]}  a6 {[%clk 0:03:01]} 6. Be2 {[%clk 0:03:03]}  e5 {[%clk 0:03:01]} 7. Nb3 {[%clk 0:03:03]}  Be7 {[%clk 0:03:02]} 8. Be3 {[%clk 0:03:03]}  Be6 {[%clk 0:03:02]} 9. Nd5 {[%clk 0:03:04]}  Nbd7 {[%clk 0:03:00]} 10. Qd3 {[%clk 0:03:00]}  O-O {[%clk 0:02:56]} 11. O-O {[%clk 0:02:59]}  Rc8 {[%clk 0:02:55]} 12. c4 {[%clk 0:02:57]}  Re8 {[%clk 0:02:42]} 13. Rac1 {[%clk 0:02:46]}  Bf8 {[%clk 0:02:38]} 14. Rfd1 {[%clk 0:02:46]}  h6 {[%clk 0:02:37]} 15. a4 {[%clk 0:02:34]}  Bxd5 {[%clk 0:02:28]} 16. exd5 {[%clk 0:02:33]}  e4 {[%clk 0:02:26]} 17. Qd2 {[%clk 0:02:18]}  Ne5 {[%clk 0:02:20]} 18. Na5 {[%clk 0:02:18]}  b6 {[%clk 0:01:57]} 19. Nb3 {[%clk 0:02:16]}  a5 {[%clk 0:01:55]} 20. Nd4 {[%clk 0:01:58]}  Qd7 {[%clk 0:01:51]} 21. b3 {[%clk 0:01:53]}  Qd8 {[%clk 0:01:35]} 22. b4 {[%clk 0:01:20]}  Qd7 {[%clk 0:01:24]} 23. bxa5 {[%clk 0:01:16]}  bxa5 {[%clk 0:01:24]} 24. Nb5 {[%clk 0:01:08]}  Qd8 {[%clk 0:01:05]} 25. c5 {[%clk 0:00:59]}  dxc5 {[%clk 0:01:01]} 26. d6 {[%clk 0:00:59]}  c4 {[%clk 0:00:17]} 27. Nc7 {[%clk 0:00:36]}  Rxc7 {[%clk 0:00:12]} 28. dxc7 {[%clk 0:00:36]}  Qxc7 {[%clk 0:00:12]} 29. Bf4 {[%clk 0:00:30]}  Bb4 {[%clk 0:00:12]} 30. Qd4 {[%clk 0:00:26]}  Re6 {[%clk 0:00:08]} 31. Bxc4 {[%clk 0:00:22]}  Kh7 {[%clk 0:00:04]} 32. Bxe6 {[%clk 0:00:21]}  Nf3+ {[%clk 0:00:01]} 33. gxf3 {[%clk 0:00:16]}  Qxf4 {[%clk 0:00:01]} 34. Bh3 {[%clk 0:00:11]}  Qg5+ {[%clk 0:00:01]} 35. Kh1 {[%clk 0:00:10]}  exf3 {[%clk 0:00:01]} 36. Rg1 {[%clk 0:00:10]} 1-0


[Site "https://www.chess.com"]

[Event "Titled Tuesday Blitz December 20 Late 2022"]
[White "Janaszak, Dawid"]
[Black "Lopez Idarraga, Daniel Eduardo"]
[WhiteFideId "1119206"]
[BlackFideId "4405501"]
[WhiteElo "2220"]
[BlackElo "2064"]
[Result "1-0"]
[Round "02"]
[TimeControl "180+1"]
[Date "2022.12.21"]
[WhiteClock "0:01:24"]
[BlackClock "0:01:08"]

1. e4 {[%clk 0:03:00]}  e6 {[%clk 0:02:58]} 2. b3 {[%clk 0:02:59]}  d5 {[%clk 0:02:58]} 3. Bb2 {[%clk 0:03:00]}  dxe4 {[%clk 0:02:59]} 4. Nc3 {[%clk 0:02:59]}  Nf6 {[%clk 0:02:59]} 5. Qe2 {[%clk 0:02:59]}  Bb4 {[%clk 0:02:59]} 6. O-O-O {[%clk 0:03:00]}  Qe7 {[%clk 0:02:59]} 7. Kb1 {[%clk 0:02:57]}  Ba3 {[%clk 0:02:59]} 8. Ba1 {[%clk 0:02:57]}  a5 {[%clk 0:02:57]} 9. g4 {[%clk 0:02:57]}  h6 {[%clk 0:02:54]} 10. h4 {[%clk 0:02:56]}  a4 {[%clk 0:02:52]} 11. Bg2 {[%clk 0:02:57]}  axb3 {[%clk 0:02:51]} 12. cxb3 {[%clk 0:02:57]}  Nc6 {[%clk 0:02:49]} 13. g5 {[%clk 0:02:53]}  hxg5 {[%clk 0:02:43]} 14. hxg5 {[%clk 0:02:53]}  Rxh1 {[%clk 0:02:37]} 15. gxf6 {[%clk 0:02:51]}  Qxf6 {[%clk 0:02:19]} 16. Bxh1 {[%clk 0:02:44]}  Nd4 {[%clk 0:02:09]} 17. Nxe4 {[%clk 0:02:38]}  Nxe2 {[%clk 0:02:02]} 18. Nxf6+ {[%clk 0:02:38]}  gxf6 {[%clk 0:02:03]} 19. Nxe2 {[%clk 0:02:38]}  e5 {[%clk 0:02:01]} 20. Be4 {[%clk 0:02:33]}  Ke7 {[%clk 0:01:55]} 21. d4 {[%clk 0:02:27]}  f5 {[%clk 0:01:54]} 22. Bc2 {[%clk 0:02:23]}  e4 {[%clk 0:01:54]} 23. d5 {[%clk 0:02:21]}  Bd6 {[%clk 0:01:50]} 24. Nd4 {[%clk 0:02:10]}  Bd7 {[%clk 0:01:46]} 25. f3 {[%clk 0:02:10]}  e3 {[%clk 0:01:42]} 26. Nxf5+ {[%clk 0:02:02]}  Bxf5 {[%clk 0:01:41]} 27. Bxf5 {[%clk 0:02:03]}  Rg8 {[%clk 0:01:39]} 28. Re1 {[%clk 0:01:59]}  Bf4 {[%clk 0:01:35]} 29. Bd4 {[%clk 0:01:55]}  Rg5 {[%clk 0:01:32]} 30. Bxe3 {[%clk 0:01:53]}  Rxf5 {[%clk 0:01:29]} 31. Bxf4+ {[%clk 0:01:53]}  Kd7 {[%clk 0:01:29]} 32. Re4 {[%clk 0:01:44]}  Rxd5 {[%clk 0:01:28]} 33. Kc2 {[%clk 0:01:41]}  Ra5 {[%clk 0:01:26]} 34. a4 {[%clk 0:01:38]}  f6 {[%clk 0:01:23]} 35. Rc4 {[%clk 0:01:35]}  c6 {[%clk 0:01:22]} 36. Rb4 {[%clk 0:01:36]}  b5 {[%clk 0:01:22]} 37. Rd4+ {[%clk 0:01:32]}  Ke6 {[%clk 0:01:20]} 38. Bd2 {[%clk 0:01:32]}  Ra7 {[%clk 0:01:15]} 39. axb5 {[%clk 0:01:29]}  cxb5 {[%clk 0:01:15]} 40. Rb4 {[%clk 0:01:29]}  Rb7 {[%clk 0:01:14]} 41. Be3 {[%clk 0:01:24]}  Kd5 {[%clk 0:01:13]} 42. Kd3 {[%clk 0:01:24]}  Kc6 {[%clk 0:01:12]} 43. Rf4 {[%clk 0:01:24]}  Rd7+ {[%clk 0:01:08]} 44. Bd4 {[%clk 0:01:24]} 1-0


[Site "https://www.chess.com"]

[Event "Titled Tuesday Blitz December 20 Late 2022"]
[White "Jaracz, Pawel"]
[Black "Jimenez Almeida, Luis David"]
[WhiteFideId "1102222"]
[BlackFideId "22242244"]
[WhiteElo "2460"]
[BlackElo "2158"]
[Result "1-0"]
[Round "02"]
[TimeControl "180+1"]
[Date "2022.12.21"]
[WhiteClock "0:00:59"]
[BlackClock "0:00:39"]

1. d4 {[%clk 0:03:00]}  g6 {[%clk 0:02:57]} 2. e4 {[%clk 0:03:00]}  Bg7 {[%clk 0:02:57]} 3. Nc3 {[%clk 0:03:00]}  c5 {[%clk 0:02:56]} 4. dxc5 {[%clk 0:03:00]}  Qa5 {[%clk 0:02:55]} 5. Bd2 {[%clk 0:03:00]}  Qxc5 {[%clk 0:02:54]} 6. Nd5 {[%clk 0:02:59]}  b6 {[%clk 0:02:50]} 7. Bb4 {[%clk 0:02:42]}  Qc6 {[%clk 0:02:49]} 8. Bb5 {[%clk 0:02:36]}  Qb7 {[%clk 0:02:50]} 9. Bc3 {[%clk 0:02:32]}  Bxc3+ {[%clk 0:02:38]} 10. Nxc3 {[%clk 0:02:32]}  Nf6 {[%clk 0:02:38]} 11. Qd4 {[%clk 0:01:50]}  Nc6 {[%clk 0:02:20]} 12. Qe3 {[%clk 0:01:46]}  O-O {[%clk 0:02:08]} 13. Nf3 {[%clk 0:01:43]}  d6 {[%clk 0:02:04]} 14. h3 {[%clk 0:01:36]}  a6 {[%clk 0:02:00]} 15. Bd3 {[%clk 0:01:30]}  b5 {[%clk 0:01:55]} 16. Qh6 {[%clk 0:01:29]}  Ne5 {[%clk 0:01:48]} 17. Ng5 {[%clk 0:01:28]}  e6 {[%clk 0:01:36]} 18. f4 {[%clk 0:01:21]}  Nxd3+ {[%clk 0:01:32]} 19. cxd3 {[%clk 0:01:20]}  Rd8 {[%clk 0:00:42]} 20. e5 {[%clk 0:01:11]}  Qxg2 {[%clk 0:00:41]} 21. exf6 {[%clk 0:00:59]}  Qxh1+ {[%clk 0:00:40]} 22. Kd2 {[%clk 0:01:00]}  Qh2+ {[%clk 0:00:39]} 23. Ne2 {[%clk 0:00:59]} 1-0


[Site "https://www.chess.com"]

[Event "Titled Tuesday Blitz December 20 Late 2022"]
[White "Jarmula, Lukasz"]
[Black "Chigaev, Maksim"]
[WhiteFideId "1160664"]
[BlackFideId "4108116"]
[WhiteElo "2357"]
[BlackElo "2542"]
[Result "0-1"]
[Round "02"]
[TimeControl "180+1"]
[Date "2022.12.20"]
[WhiteClock "0:00:05"]
[BlackClock "0:00:06"]

1. e4 {[%clk 0:03:00]}  c5 {[%clk 0:02:59]} 2. Nf3 {[%clk 0:03:00]}  d6 {[%clk 0:03:00]} 3. Bb5+ {[%clk 0:03:00]}  Bd7 {[%clk 0:03:00]} 4. c4 {[%clk 0:02:59]}  Nf6 {[%clk 0:02:57]} 5. Nc3 {[%clk 0:02:59]}  Nc6 {[%clk 0:02:56]} 6. O-O {[%clk 0:02:59]}  g6 {[%clk 0:02:56]} 7. Bxc6 {[%clk 0:02:58]}  Bxc6 {[%clk 0:02:56]} 8. d4 {[%clk 0:02:58]}  cxd4 {[%clk 0:02:56]} 9. Nxd4 {[%clk 0:02:57]}  Bg7 {[%clk 0:02:57]} 10. Qd3 {[%clk 0:02:57]}  O-O {[%clk 0:02:56]} 11. b3 {[%clk 0:02:58]}  a6 {[%clk 0:02:53]} 12. Bb2 {[%clk 0:02:57]}  Rc8 {[%clk 0:02:54]} 13. Nd5 {[%clk 0:02:52]}  Bd7 {[%clk 0:02:39]} 14. Rfe1 {[%clk 0:02:46]}  b5 {[%clk 0:02:29]} 15. cxb5 {[%clk 0:02:37]}  axb5 {[%clk 0:02:26]} 16. Nxf6+ {[%clk 0:01:55]}  Bxf6 {[%clk 0:02:26]} 17. Qd2 {[%clk 0:01:55]}  Qb6 {[%clk 0:02:19]} 18. Nf3 {[%clk 0:01:54]}  Bxb2 {[%clk 0:02:18]} 19. Qxb2 {[%clk 0:01:54]}  b4 {[%clk 0:02:11]} 20. e5 {[%clk 0:01:52]}  Bf5 {[%clk 0:02:01]} 21. exd6 {[%clk 0:01:48]}  exd6 {[%clk 0:01:52]} 22. Qf6 {[%clk 0:01:42]}  Rc2 {[%clk 0:01:26]} 23. Nd4 {[%clk 0:01:40]}  Rd2 {[%clk 0:01:06]} 24. Red1 {[%clk 0:01:35]}  Rb2 {[%clk 0:00:55]} 25. h4 {[%clk 0:01:30]}  h5 {[%clk 0:00:51]} 26. Rf1 {[%clk 0:01:22]}  Bd3 {[%clk 0:00:47]} 27. Nf5 {[%clk 0:01:13]}  Bxf5 {[%clk 0:00:44]} 28. Qxb2 {[%clk 0:01:12]}  d5 {[%clk 0:00:44]} 29. Rfe1 {[%clk 0:01:10]}  d4 {[%clk 0:00:39]} 30. Rad1 {[%clk 0:01:06]}  d3 {[%clk 0:00:34]} 31. Re3 {[%clk 0:01:00]}  Rd8 {[%clk 0:00:33]} 32. Rde1 {[%clk 0:00:57]}  Qc6 {[%clk 0:00:23]} 33. Qd2 {[%clk 0:00:56]}  Qc3 {[%clk 0:00:16]} 34. Rd1 {[%clk 0:00:39]}  Kg7 {[%clk 0:00:16]} 35. f3 {[%clk 0:00:32]}  Qd4 {[%clk 0:00:08]} 36. Qf2 {[%clk 0:00:31]}  Qc3 {[%clk 0:00:08]} 37. Rd2 {[%clk 0:00:23]}  Rc8 {[%clk 0:00:07]} 38. Kh2 {[%clk 0:00:23]}  Qf6 {[%clk 0:00:04]} 39. g4 {[%clk 0:00:22]}  hxg4 {[%clk 0:00:03]} 40. fxg4 {[%clk 0:00:22]}  Bxg4 {[%clk 0:00:03]} 41. Qxf6+ {[%clk 0:00:21]}  Kxf6 {[%clk 0:00:04]} 42. Rexd3 {[%clk 0:00:21]}  Bf5 {[%clk 0:00:03]} 43. Rd4 {[%clk 0:00:20]}  Rb8 {[%clk 0:00:04]} 44. Rc4 {[%clk 0:00:20]}  Be6 {[%clk 0:00:03]} 45. Rf4+ {[%clk 0:00:19]}  Ke5 {[%clk 0:00:04]} 46. Rdd4 {[%clk 0:00:20]}  f5 {[%clk 0:00:03]} 47. Rxb4 {[%clk 0:00:19]}  Rd8 {[%clk 0:00:04]} 48. Ra4 {[%clk 0:00:16]}  Rd2+ {[%clk 0:00:04]} 49. Kg3 {[%clk 0:00:16]}  Bd5 {[%clk 0:00:05]} 50. Rfb4 {[%clk 0:00:13]}  Rg2+ {[%clk 0:00:03]} 51. Kh3 {[%clk 0:00:13]}  Rd2 {[%clk 0:00:04]} 52. Rb5 {[%clk 0:00:13]}  f4 {[%clk 0:00:04]} 53. Raa5 {[%clk 0:00:13]}  f3 {[%clk 0:00:04]} 54. Kg3 {[%clk 0:00:11]}  Rg2+ {[%clk 0:00:03]} 55. Kh3 {[%clk 0:00:12]}  Kf4 {[%clk 0:00:03]} 56. Rxd5 {[%clk 0:00:11]}  Rg3+ {[%clk 0:00:04]} 57. Kh2 {[%clk 0:00:11]}  Rg2+ {[%clk 0:00:05]} 58. Kh1 {[%clk 0:00:10]}  Rb2 {[%clk 0:00:06]} 59. Ra4+ {[%clk 0:00:06]}  Kg3 {[%clk 0:00:06]} 60. Rg5+ {[%clk 0:00:06]}  Kh3 {[%clk 0:00:07]} 61. Rg1 {[%clk 0:00:05]}  Rh2# {[%clk 0:00:06]} 0-1


[Site "https://www.chess.com"]

[Event "Titled Tuesday Blitz December 20 Late 2022"]
[White "Jobava, Baadur"]
[Black "Mendez Fortes, Eduardo Jesus"]
[WhiteFideId "13601520"]
[BlackFideId "3502376"]
[WhiteElo "2582"]
[BlackElo "2307"]
[Result "1-0"]
[Round "02"]
[TimeControl "180+1"]
[Date "2022.12.20"]
[WhiteClock "0:00:31"]
[BlackClock "0:00:38"]

1. b3 {[%clk 0:03:00]}  Nf6 {[%clk 0:02:59]} 2. Bb2 {[%clk 0:03:01]}  d5 {[%clk 0:02:59]} 3. d3 {[%clk 0:03:01]}  c5 {[%clk 0:02:59]} 4. Nd2 {[%clk 0:03:02]}  Nc6 {[%clk 0:02:59]} 5. g3 {[%clk 0:03:02]}  d4 {[%clk 0:02:59]} 6. Bg2 {[%clk 0:03:02]}  e5 {[%clk 0:02:54]} 7. Ngf3 {[%clk 0:03:02]}  Bd6 {[%clk 0:02:53]} 8. O-O {[%clk 0:03:02]}  O-O {[%clk 0:02:53]} 9. c4 {[%clk 0:03:02]}  h6 {[%clk 0:02:53]} 10. e3 {[%clk 0:03:01]}  Bf5 {[%clk 0:02:52]} 11. e4 {[%clk 0:02:52]}  Bh7 {[%clk 0:02:51]} 12. a3 {[%clk 0:02:53]}  a5 {[%clk 0:02:51]} 13. Nh4 {[%clk 0:02:52]}  a4 {[%clk 0:02:39]} 14. bxa4 {[%clk 0:02:51]}  Nd7 {[%clk 0:02:35]} 15. Nf5 {[%clk 0:02:50]}  Bc7 {[%clk 0:02:31]} 16. Bc1 {[%clk 0:02:50]}  Nb6 {[%clk 0:02:30]} 17. Rb1 {[%clk 0:02:48]}  Ra7 {[%clk 0:02:26]} 18. Qg4 {[%clk 0:02:39]}  Qg5 {[%clk 0:02:17]} 19. Qh3 {[%clk 0:02:35]}  Qf6 {[%clk 0:02:10]} 20. f4 {[%clk 0:02:14]}  exf4 {[%clk 0:02:06]} 21. gxf4 {[%clk 0:02:15]}  Nxa4 {[%clk 0:02:05]} 22. Kh1 {[%clk 0:02:01]}  Nc3 {[%clk 0:02:03]} 23. Rb5 {[%clk 0:01:55]}  Nxb5 {[%clk 0:01:49]} 24. cxb5 {[%clk 0:01:55]}  Ne7 {[%clk 0:01:49]} 25. Nxe7+ {[%clk 0:01:56]}  Qxe7 {[%clk 0:01:50]} 26. Nc4 {[%clk 0:01:56]}  Ra4 {[%clk 0:01:43]} 27. e5 {[%clk 0:01:40]}  b6 {[%clk 0:01:25]} 28. Rg1 {[%clk 0:01:32]}  Rxc4 {[%clk 0:01:16]} 29. dxc4 {[%clk 0:01:31]}  Qe6 {[%clk 0:01:17]} 30. Qb3 {[%clk 0:01:22]}  Bf5 {[%clk 0:01:16]} 31. Bd5 {[%clk 0:01:18]}  Qe7 {[%clk 0:01:16]} 32. a4 {[%clk 0:01:11]}  Rb8 {[%clk 0:01:14]} 33. Bd2 {[%clk 0:01:11]}  Kh8 {[%clk 0:01:13]} 34. Qg3 {[%clk 0:01:00]}  f6 {[%clk 0:01:11]} 35. e6 {[%clk 0:00:53]}  Rd8 {[%clk 0:01:07]} 36. Re1 {[%clk 0:00:48]}  Re8 {[%clk 0:01:04]} 37. Qf3 {[%clk 0:00:43]}  Qd6 {[%clk 0:01:01]} 38. Qh5 {[%clk 0:00:43]}  Rxe6 {[%clk 0:00:40]} 39. Rxe6 {[%clk 0:00:32]}  Bxe6 {[%clk 0:00:39]} 40. Qe8+ {[%clk 0:00:32]}  Kh7 {[%clk 0:00:38]} 41. Bxe6 {[%clk 0:00:31]} 1-0


[Site "https://www.chess.com"]

[Event "Titled Tuesday Blitz December 20 Late 2022"]
[White "Joubert, Dantelle"]
[Black "Battlecruiser_Operational"]
[WhiteFideId "14310813"]
[WhiteElo "1507"]
[BlackElo "2422"]
[Result "0-1"]
[Round "02"]
[TimeControl "180+1"]
[Date "2022.12.21"]
[WhiteClock "0:00:04"]
[BlackClock "0:00:10"]

1. d4 {[%clk 0:03:00]}  e6 {[%clk 0:02:56]} 2. c4 {[%clk 0:02:59]}  f5 {[%clk 0:02:56]} 3. Nf3 {[%clk 0:02:49]}  Nf6 {[%clk 0:02:55]} 4. g3 {[%clk 0:02:49]}  d5 {[%clk 0:02:48]} 5. Bg2 {[%clk 0:02:46]}  c6 {[%clk 0:02:48]} 6. O-O {[%clk 0:02:44]}  Bd6 {[%clk 0:02:47]} 7. b3 {[%clk 0:02:44]}  Qe7 {[%clk 0:02:44]} 8. a4 {[%clk 0:02:43]}  O-O {[%clk 0:02:34]} 9. Ba3 {[%clk 0:02:41]}  Nbd7 {[%clk 0:02:33]} 10. Ne5 {[%clk 0:02:34]}  Bxa3 {[%clk 0:02:24]} 11. Nxa3 {[%clk 0:02:25]}  Nxe5 {[%clk 0:02:22]} 12. dxe5 {[%clk 0:02:24]}  Ng4 {[%clk 0:02:12]} 13. Qd4 {[%clk 0:01:38]}  c5 {[%clk 0:02:03]} 14. Qb2 {[%clk 0:01:37]}  d4 {[%clk 0:01:59]} 15. f4 {[%clk 0:01:36]}  Ne3 {[%clk 0:01:29]} 16. Rf3 {[%clk 0:01:25]}  Nxg2 {[%clk 0:01:27]} 17. Kxg2 {[%clk 0:01:25]}  Bd7 {[%clk 0:01:27]} 18. Rff1 {[%clk 0:01:16]}  Bc6+ {[%clk 0:01:26]} 19. Kg1 {[%clk 0:01:15]}  Rad8 {[%clk 0:01:15]} 20. Nb5 {[%clk 0:01:14]}  g5 {[%clk 0:00:53]} 21. Qd2 {[%clk 0:01:03]}  gxf4 {[%clk 0:00:33]} 22. Qxf4 {[%clk 0:01:03]}  Kh8 {[%clk 0:00:30]} 23. Nd6 {[%clk 0:00:58]}  Rg8 {[%clk 0:00:23]} 24. h3 {[%clk 0:00:54]}  Rg7 {[%clk 0:00:20]} 25. Kh2 {[%clk 0:00:54]}  Rdg8 {[%clk 0:00:20]} 26. Rg1 {[%clk 0:00:53]}  b6 {[%clk 0:00:19]} 27. a5 {[%clk 0:00:50]}  h5 {[%clk 0:00:17]} 28. Qh6+ {[%clk 0:00:44]}  Rh7 {[%clk 0:00:17]} 29. Qf6+ {[%clk 0:00:43]}  Qxf6 {[%clk 0:00:17]} 30. exf6 {[%clk 0:00:43]}  Rd7 {[%clk 0:00:17]} 31. f7 {[%clk 0:00:37]}  Rf8 {[%clk 0:00:17]} 32. Nb5 {[%clk 0:00:29]}  Bxb5 {[%clk 0:00:15]} 33. cxb5 {[%clk 0:00:28]}  Rfxf7 {[%clk 0:00:15]} 34. axb6 {[%clk 0:00:28]}  axb6 {[%clk 0:00:16]} 35. Ra8+ {[%clk 0:00:25]}  Kg7 {[%clk 0:00:16]} 36. Ra6 {[%clk 0:00:26]}  Rd6 {[%clk 0:00:17]} 37. Rga1 {[%clk 0:00:24]}  e5 {[%clk 0:00:16]} 38. Ra7 {[%clk 0:00:22]}  Rxa7 {[%clk 0:00:16]} 39. Rxa7+ {[%clk 0:00:21]}  Kf6 {[%clk 0:00:16]} 40. Kg2 {[%clk 0:00:21]}  e4 {[%clk 0:00:15]} 41. Kf2 {[%clk 0:00:20]}  h4 {[%clk 0:00:11]} 42. gxh4 {[%clk 0:00:16]}  f4 {[%clk 0:00:11]} 43. Rc7 {[%clk 0:00:13]}  d3 {[%clk 0:00:10]} 44. exd3 {[%clk 0:00:12]}  Rxd3 {[%clk 0:00:10]} 45. Rc6+ {[%clk 0:00:11]}  Ke5 {[%clk 0:00:10]} 46. Rxb6 {[%clk 0:00:10]}  Rxb3 {[%clk 0:00:11]} 47. Rb8 {[%clk 0:00:08]}  Rxh3 {[%clk 0:00:10]} 48. b6 {[%clk 0:00:07]}  Rh2+ {[%clk 0:00:10]} 49. Kg1 {[%clk 0:00:05]}  Rb2 {[%clk 0:00:10]} 50. b7 {[%clk 0:00:04]}  Kd6 {[%clk 0:00:10]} 0-1


[Site "https://www.chess.com"]